fUSD/lending_fUSD_20250629
["ID","MTS","AMOUNT","RATE_DAILY","PERIOD"]
[368508434,1751192709811,60000.0,0.00014,2]
[368508435,1751192709840,60000.0,0.00014,2]
[368508436,1751192709866,60000.0,0.00014,2]
[368508437,1751192709892,60000.0,0.00014,2]
[368508438,1751192709925,60000.0,0.00014,2]
[368508439,1751192709956,2000000.0,0.00014,2]
[368508440,1751192709987,2000000.0,0.00014,2]
[368508441,1751192710013,3000.0,0.00014,2]
[368508442,1751192710041,2000.0,0.00014,2]
[368508443,1751192710066,50000.0,0.00014,2]
[368508444,1751192710090,50000.0,0.00014,2]
[368508445,1751192710113,50000.0,0.00014,2]
[368508446,1751192710137,50000.0,0.00014,2]
[368508447,1751192710161,50000.0,0.00014,2]
[368508448,1751192710186,50000.0,0.00014,2]
[368508449,1751192710210,50000.0,0.00014,2]
[368508450,1751192710237,50000.0,0.00014,2]
[368508451,1751192710261,50000.0,0.00014,2]
[368508452,1751192710284,50000.0,0.00014,2]
[368508453,1751192710309,50000.0,0.00014,2]
[368508454,1751192710333,50000.0,0.00014,2]
[368508455,1751192710357,50000.0,0.00014,2]
[368508456,1751192710382,50000.0,0.00014,2]
[368508457,1751192710408,50000.0,0.00014,2]
[368508458,1751192710432,50000.0,0.00014,2]
[368508459,1751192710457,50000.0,0.00014,2]
[368508460,1751192710481,50000.0,0.00014,2]
[368508461,1751192710504,50000.0,0.00014,2]
[368508462,1751192710527,50000.0,0.00014,2]
[368508463,1751192710550,2000.0,0.00014,2]
[368508464,1751192710576,60000.0,0.00014,2]
[368508465,1751192710599,60000.0,0.00014,2]
[368508466,1751192710624,60000.0,0.00014,2]
[368508467,1751192710649,60000.0,0.00014,2]
[368508468,1751192710674,60000.0,0.00014,2]
[368508469,1751192710699,60000.0,0.00014,2]
[368508470,1751192710723,60000.0,0.00014,2]
[368508471,1751192710747,60000.0,0.00014,2]
[368508472,1751192710771,60000.0,0.00014,2]
[368508473,1751192710795,60000.0,0.00014,2]
[368508474,1751192710818,60000.0,0.00014,2]
[368508475,1751192710842,60000.0,0.00014,2]
[368508476,1751192710866,60000.0,0.00014,2]
[368508477,1751192710891,60000.0,0.00014,2]
[368508478,1751192710914,60000.0,0.00014,2]
[368508479,1751192710937,60000.0,0.00014,2]
[368508480,1751192710961,60000.0,0.00014,2]
[368508481,1751192710984,60000.0,0.00014,2]
[368508482,1751192711008,60000.0,0.00014,2]
[368508483,1751192711031,60000.0,0.00014,2]
[368508484,1751192711060,87500.0,0.00014,2]
[368508485,1751192711154,-216.89565085,0.00014,2]
[368508486,1751192718088,-170.0,0.00014,2]
[368508487,1751192722003,-301.06317523,0.00014,2]
[368508488,1751192725767,-158.29561686,0.00014,2]
[368508489,1751192727994,-298.35605426,0.00014,2]
[368508490,1751192731367,-208.26340024,0.00014,2]
[368508491,1751192733571,-161.63610937,0.00014,2]
[368508492,1751192736897,6613.34553087,9e-05,2]
[368508493,1751192738160,-153.739976,0.00014,2]
[368508494,1751192739393,-182.47705116,0.00014,2]
[368508495,1751192740935,-159.0,0.00014,2]
[368508496,1751192743574,-177.25860001,0.00014,2]
[368508497,1751192745881,-495.42760843,0.00014,2]
[368508498,1751192747627,-170.5707268,0.00014,2]
[368508499,1751192749676,-337.7900768,0.00014,2]
[368508500,1751192752456,-555.12412004,0.00014,2]
[368508501,1751192755592,12591.79392897,6.94e-05,2]
[368508502,1751192755699,-153.739976,0.00014,2]
[368508503,1751192757958,-153.739976,0.00014,2]
[368508504,1751192760770,-158.96754142,0.00014,2]
[368508505,1751192762391,-193.3806057,0.00014,2]
[368508506,1751192763483,8892.32947513,8e-05,2]
[368508507,1751192765853,-169.28752621,0.00013999,2]
[368508508,1751192768100,-130.71247379,0.00013999,2]
[368508509,1751192768124,-69.40185288,0.00014,2]
[368508510,1751192771086,-463.17355762,0.00014,2]
[368508511,1751192774473,-234.62186598,0.00014,2]
[368508512,1751192776822,-302.2045764,0.00014,2]
[368508513,1751192778304,-48000.0,0.00014,2]
[368508514,1751192778459,-151.0,0.00014,2]
[368508515,1751192781774,-295.46052661,0.00014,2]
[368508516,1751192785197,-486.40748668,0.00014,2]
[368508517,1751192789698,-303.00957051,0.00014,2]
[368508518,1751192792302,-215.1224162,0.00013999,2]
[368508519,1751192792475,-284.8775838,0.00013999,2]
[368508520,1751192792506,-500.0,0.00013999,2]
[368508521,1751192792533,-500.0,0.00013999,2]
[368508522,1751192792561,-500.0,0.00013999,2]
[368508523,1751192792587,-500.0,0.00013999,2]
[368508524,1751192792613,-2515.1224162,0.00014,2]
[368508525,1751192796763,-168.533993,0.00013999,2]
[368508526,1751192800472,-183.94785177,0.00013999,2]
[368508527,1751192801862,-7.04357998,0.00013999,2]
[368508528,1751192801884,-148.48092319,0.00013999,2]
[368508529,1751192803441,-267.6846552,0.00013999,2]
[368508530,1751192804293,-83.83442161,0.00013999,2]
[368508531,1751192804321,-178.97096105,0.00013999,2]
[368508532,1751192804345,-217.19461734,0.00013999,2]
[368508533,1751192805161,-3.90305101,0.00013999,2]
[368508534,1751192805184,-246.47144713,0.00013999,2]
[368508535,1751192805206,-94.10099869,0.00013999,2]
[368508536,1751192807211,-217.531378,0.00013999,2]
[368508537,1751192809464,-188.36762331,0.00013999,2]
[368508538,1751192809488,-31.15200593,0.00013999,2]
[368508539,1751192812966,-156.94899276,0.00013999,2]
[368508540,1751192816708,-311.89900131,0.00013999,2]
[368508541,1751192816733,-35.80712384,0.00013999,2]
[368508542,1751192820821,-174.27949206,0.00013999,2]
[368508543,1751192822392,-226.45753355,0.00013999,2]
[368508544,1751192824045,-63.45585055,0.00013999,2]
[368508545,1751192824069,-209.58222029,0.00013999,2]
[368508546,1751192827384,-245.83590817,0.00013973,2]
[368508547,1751192828368,27682.838947,7.945e-05,2]
[368508548,1751192828906,-254.16409183,0.00013973,2]
[368508549,1751192828934,-300.0,0.00013998,2]
[368508550,1751192828963,-338.26621587,0.00013999,2]
[368508551,1751192828993,-637.46226707,0.00013999,2]
[368508552,1751192829024,-393.24420993,0.00013999,2]
[368508553,1751192829054,-500.0,0.00013999,2]
[368508554,1751192829081,-258.9550041,0.00013999,2]
[368508555,1751192829110,-500.0,0.00013999,2]
[368508556,1751192829138,-16817.9082112,0.00014,2]
[368508557,1751192829592,-446.42504223,0.00014,2]
[368508558,1751192831289,-385.50873993,0.00014,2]
[368508559,1751192831348,600.0,0.000131,4]
[368508560,1751192833453,900.0,0.000132,4]
[368508561,1751192833486,300.0,0.000132,4]
[368508562,1751192835556,1900.0,0.000133,4]
[368508563,1751192836234,-151.95,0.00014,2]
[368508564,1751192837511,205.0,9.8e-05,2]
[368508565,1751192837662,1800.0,0.000134,4]
[368508566,1751192837934,-285.43354853,0.000134,4]
[368508567,1751192839731,-180.04027199,0.000134,4]
[368508568,1751192841754,-228.05214823,0.0001305,2]
[368508569,1751192843610,-253.31856329,0.000101,2]
[368508570,1751192843632,-79.35278277,0.0001305,2]
[368508571,1751192846284,-176.96540838,0.0001305,2]
[368508572,1751192847938,-154.34268826,0.0001305,2]
[368508573,1751192849954,-256.95539783,0.0001305,2]
[368508574,1751192854127,-168.60103363,0.0001305,2]
[368508575,1751192857997,-259.74839781,0.0001305,2]
[368508576,1751192861477,-172.76896548,0.0001305,2]
[368508577,1751192863647,-307.3042886,0.0001305,2]
[368508578,1751192866699,-272.25885141,0.0001305,2]
[368508579,1751192866728,-118.82216015,0.000134,4]
[368508580,1751192868960,-115.70401933,0.000134,4]
[368508581,1751192868985,-175.35733209,0.000135,4]
[368508582,1751192874084,-254.47135023,0.00013,2]
[368508583,1751192876446,-198.58203008,0.00013,2]
[368508584,1751192878834,-159.39,0.00013,2]
[368508585,1751192880925,-169.7364758,0.00013,2]
[368508586,1751192883504,-399.03670281,0.00013,2]
[368508587,1751192887470,150.0,1e-08,2]
[368508588,1751192889112,-159.0,0.00013,2]
[368508589,1751192890760,-152.90727119,0.00013,2]
[368508590,1751192892505,-167.018939,0.00013,2]
[368508591,1751192894633,-204.0,0.00013,2]
[368508592,1751192898676,-211.2368095,0.00013,2]
[368508593,1751192901333,-168.26062021,0.00013,2]
[368508594,1751192903537,-236.05616226,0.00013,2]
[368508595,1751192907939,-328.4680872,0.00013,2]
[368508596,1751192908181,381.80693754,7.888e-05,2]
[368508597,1751192909524,-171.04221143,0.00013,2]
[368508598,1751192912374,-280.59109669,0.00013,2]
[368508599,1751192916546,-294.39798582,0.00013,2]
[368508600,1751192918631,-170.11094338,0.00013,2]
[368508601,1751192923221,-273.346476,0.00013,2]
[368508602,1751192924746,-223.95590937,0.00013,2]
[368508603,1751192926582,-90.10349991,0.00013,2]
[368508604,1751192927499,-339.70713427,0.000135,4]
[368508605,1751192929884,-211.65947989,0.000135,4]
[368508606,1751192932195,-250.0,0.000135,4]
[368508607,1751192934282,-161.90309351,0.000135,4]
[368508608,1751192936366,-302.09690649,0.000135,4]
[368508613,1751192940408,-258.80510438,0.000135,4]
[368508614,1751192943825,-299.77438939,0.000135,4]
[368508615,1751192946084,-273.02659463,0.000135,4]
[368508616,1751192948208,-258.91288165,0.000135,4]
[368508617,1751192951502,-250.0,0.000135,4]
[368508618,1751192954354,-316.56211625,0.000135,4]
[368508619,1751192956426,-102.19496745,0.000135,4]
[368508620,1751192956450,-56.14302035,0.000136,4]
[368508621,1751192959272,-543.85697965,0.000136,4]
[368508622,1751192959294,-39.13251565,0.00013631,2]
[368508623,1751192964384,-129.40147735,0.00013631,2]
[368508624,1751192964408,-202.90638989,0.000137,5]
[368508625,1751192967674,-397.09361011,0.000137,5]
[368508626,1751192967697,-56.67251934,0.000138,5]
[368508627,1751192967741,-543.32748066,0.000138,5]
[368508628,1751192967765,-600.0,0.000139,5]
[368508629,1751192967789,-792.93998716,0.000139,2]
[368508630,1751192967813,-1048.75462592,0.000139,2]
[368508631,1751192967836,-2360.13833382,0.000139,2]
[368508632,1751192967860,-941.7258937,0.000139,2]
[368508633,1751192967886,-233.5736166,0.00013973,2]
[368508634,1751192967910,-500.0,0.00013999,2]
[368508635,1751192967934,-400.0,0.00013999,2]
[368508636,1751192967959,-406.1162637,0.00013999,2]
[368508637,1751192967985,-500.0,0.00013999,2]
[368508638,1751192968010,-500.0,0.00013999,2]
[368508639,1751192968036,-500.0,0.00013999,2]
[368508640,1751192968063,-500.0,0.00013999,2]
[368508641,1751192968089,-307.20008735,0.00013999,2]
[368508642,1751192968113,-500.0,0.00013999,2]
[368508643,1751192968138,-500.0,0.00013999,2]
[368508644,1751192968162,-284.52003031,0.00013999,2]
[368508645,1751192968187,-181.98108392,0.00013999,2]
[368508646,1751192968213,-500.0,0.00013999,2]
[368508647,1751192968239,-500.0,0.00013999,2]
[368508648,1751192968264,-350.0,0.00013999,2]
[368508649,1751192968288,-450.0,0.00013999,2]
[368508650,1751192968314,-312.75945941,0.00013999,2]
[368508651,1751192968340,-285.90981788,0.00013999,2]
[368508652,1751192968365,-170310.94981966,0.00014,2]
[368508653,1751192971272,-300.0,0.00013,4]
[368508654,1751192971294,-4309.885308,0.00014,2]
[368508655,1751192971769,-159.49852238,0.00014,2]
[368508656,1751192973707,-162.47972537,0.000131,4]
[368508657,1751192977436,-230.02703741,0.000131,4]
[368508658,1751192981418,-163.51214875,0.000131,4]
[368508659,1751192983140,-143.98108847,0.000131,4]
[368508660,1751192983164,-20.84118279,0.000132,4]
[368508661,1751192985804,-227.92125196,0.000132,4]
[368508662,1751192987546,-312.67625074,0.000132,4]
[368508663,1751192989212,-322.99139074,0.000132,4]
[368508664,1751192992817,-115.56992377,0.000132,4]
[368508665,1751192992840,-239.43007623,0.000133,4]
[368508666,1751192994505,-226.96192916,0.000133,4]
[368508667,1751192997268,-168.33215609,0.000133,4]
[368508668,1751192999917,-346.5026758,0.000133,4]
[368508669,1751193001465,-205.60201418,0.000133,4]
[368508670,1751193004481,-256.08343801,0.00013233,2]
[368508671,1751193005505,257.0,0.0002739,120]
[368508672,1751193006279,1243.0,0.0002739,120]
[368508673,1751193008942,-431.49445306,0.00013233,2]
[368508674,1751193012180,-299.902565,0.00013233,2]
[368508675,1751193015374,-299.56666111,0.00013233,2]
[368508676,1751193018183,-405.53082743,0.00013233,2]
[368508677,1751193021641,-153.28296803,0.00013233,2]
[368508678,1751193028403,-233.25224246,0.00013233,2]
[368508679,1751193030872,-46.0947699,0.00013233,2]
[368508680,1751193030894,-111.1852301,0.00013267,2]
[368508684,1751193032482,-138.8147699,0.00013267,2]
[368508685,1751193032492,-213.17114854,0.000133,4]
[368508686,1751193032502,-730.49548156,0.000134,4]
[368508696,1751193033302,-161.75760288,0.000134,4]
[368508697,1751193036220,-234.70000504,0.000134,4]
[368508698,1751193038170,-673.04691052,0.000134,4]
[368508699,1751193038179,-71.03485028,0.000135,4]
[368508700,1751193038509,-13.56541438,0.000135,4]
[368508712,1751193038703,-215.39973534,0.000135,4]
[368508714,1751193038713,-300.0,0.000136,4]
[368508716,1751193038722,-300.0,0.000137,5]
[368508718,1751193038731,-300.0,0.000138,5]
[368508720,1751193038740,-1200.0,0.00013899,2]
[368508722,1751193038749,-844.0,0.000139,5]
[368508724,1751193038758,-17237.35926276,0.000139,2]
[368508726,1751193038767,-1585.87997428,0.000139,2]
[368508728,1751193038776,-500.0,0.00013973,2]
[368508730,1751193038785,-500.0,0.00013973,2]
[368508732,1751193038794,-252.31,0.0001399,2]
[368508734,1751193038804,-252.31,0.0001399,2]
[368508736,1751193038813,-252.31,0.0001399,2]
[368508738,1751193038822,-252.31,0.0001399,2]
[368508740,1751193038831,-252.31,0.0001399,2]
[368508742,1751193038840,-252.31,0.0001399,2]
[368508744,1751193038849,-252.31,0.0001399,2]
[368508746,1751193038858,-252.31,0.0001399,2]
[368508748,1751193038868,-252.31,0.0001399,2]
[368508750,1751193038877,-252.31,0.0001399,2]
[368508752,1751193038886,-252.31,0.0001399,2]
[368508754,1751193038895,-252.31,0.0001399,2]
[368508755,1751193038904,-252.31,0.0001399,2]
[368508757,1751193038913,-252.31,0.0001399,2]
[368508759,1751193038922,-252.31,0.0001399,2]
[368508761,1751193038931,-252.31,0.0001399,2]
[368508763,1751193038942,-252.31,0.0001399,2]
[368508765,1751193038952,-252.31,0.0001399,2]
[368508767,1751193038961,-252.31,0.0001399,2]
[368508769,1751193038971,-252.31,0.0001399,2]
[368508771,1751193038980,-252.31,0.0001399,2]
[368508773,1751193038989,-252.31,0.0001399,2]
[368508775,1751193038998,-252.31,0.0001399,2]
[368508777,1751193039007,-252.31,0.0001399,2]
[368508779,1751193039016,-252.31,0.0001399,2]
[368508781,1751193039025,-252.31,0.0001399,2]
[368508783,1751193039035,-252.31,0.0001399,2]
[368508785,1751193039043,-252.31,0.0001399,2]
[368508787,1751193039053,-252.31,0.0001399,2]
[368508789,1751193039062,-252.31,0.0001399,2]
[368508791,1751193039071,-252.31,0.0001399,2]
[368508793,1751193039079,-252.31,0.0001399,2]
[368508795,1751193039089,-252.31,0.0001399,2]
[368508797,1751193039097,-252.31,0.0001399,2]
[368508799,1751193039106,-454.22,0.0001399,2]
[368508801,1751193039115,-252.31,0.0001399,2]
[368508803,1751193039124,-252.31,0.0001399,2]
[368508805,1751193039133,-252.31,0.0001399,2]
[368508807,1751193039142,-454.22,0.0001399,2]
[368508809,1751193039151,-252.31,0.0001399,2]
[368508811,1751193039160,-252.31,0.0001399,2]
[368508813,1751193039169,-252.31,0.0001399,2]
[368508815,1751193039178,-252.31,0.0001399,2]
[368508817,1751193039187,-252.31,0.0001399,2]
[368508819,1751193039196,-252.31,0.0001399,2]
[368508821,1751193039206,-252.31,0.0001399,2]
[368508823,1751193039215,-252.31,0.0001399,2]
[368508825,1751193039224,-252.31,0.0001399,2]
[368508827,1751193039233,-252.31,0.0001399,2]
[368508829,1751193039242,-252.31,0.0001399,2]
[368508831,1751193039251,-252.31,0.0001399,2]
[368508833,1751193039260,-252.31,0.0001399,2]
[368508835,1751193039269,-252.31,0.0001399,2]
[368508837,1751193039278,-252.31,0.0001399,2]
[368508838,1751193039287,-252.31,0.0001399,2]
[368508840,1751193039296,-252.31,0.0001399,2]
[368508842,1751193039305,-252.31,0.0001399,2]
[368508844,1751193039314,-252.31,0.0001399,2]
[368508846,1751193039324,-252.31,0.0001399,2]
[368508848,1751193039336,-252.31,0.0001399,2]
[368508850,1751193039345,-252.31,0.0001399,2]
[368508853,1751193039354,-252.31,0.0001399,2]
[368508854,1751193039364,-252.31,0.0001399,2]
[368508856,1751193039374,-252.31,0.0001399,2]
[368508858,1751193039383,-252.31,0.0001399,2]
[368508860,1751193039393,-252.31,0.0001399,2]
[368508862,1751193039402,-252.31,0.0001399,2]
[368508864,1751193039411,-252.31,0.0001399,2]
[368508866,1751193039421,-252.31,0.0001399,2]
[368508868,1751193039431,-252.31,0.0001399,2]
[368508870,1751193039440,-252.31,0.0001399,2]
[368508872,1751193039449,-252.31,0.0001399,2]
[368508874,1751193039460,-252.31,0.0001399,2]
[368508876,1751193039471,-252.31,0.0001399,2]
[368508878,1751193039481,-252.31,0.0001399,2]
[368508880,1751193039491,-252.31,0.0001399,2]
[368508882,1751193039500,-252.31,0.0001399,2]
[368508884,1751193039509,-252.31,0.0001399,2]
[368508886,1751193039519,-252.31,0.0001399,2]
[368508888,1751193039529,-252.31,0.0001399,2]
[368508890,1751193039538,-252.31,0.0001399,2]
[368508892,1751193039547,-252.31,0.0001399,2]
[368508894,1751193039557,-252.31,0.0001399,2]
[368508896,1751193039566,-252.31,0.0001399,2]
[368508898,1751193039576,-252.31,0.0001399,2]
[368508900,1751193039585,-252.31,0.0001399,2]
[368508902,1751193039594,-252.31,0.0001399,2]
[368508904,1751193039603,-252.31,0.0001399,2]
[368508906,1751193039612,-252.31,0.0001399,2]
[368508908,1751193039622,-252.31,0.0001399,2]
[368508910,1751193039631,-252.31,0.0001399,2]
[368508912,1751193039640,-252.31,0.0001399,2]
[368508914,1751193039649,-252.31,0.0001399,2]
[368508916,1751193039659,-252.31,0.0001399,2]
[368508918,1751193039668,-252.31,0.0001399,2]
[368508920,1751193039677,-188.85595978,0.0001399,2]
[368508922,1751193039687,-252.31,0.0001399,2]
[368508924,1751193039696,-252.31,0.0001399,2]
[368508926,1751193039705,-252.31,0.0001399,2]
[368508928,1751193039714,-252.31,0.0001399,2]
[368508930,1751193039724,-252.31,0.0001399,2]
[368508932,1751193039733,-252.31,0.0001399,2]
[368508934,1751193039743,-19815485.67135137,0.00014,2]
[368508936,1751193039751,-2842291.48255437,0.00014,2]
[368508945,1751193039826,-159.75328413,0.00014,2]
[368508997,1751193040295,-5738644.07363595,0.00014,2]
[368508999,1751193040307,-336.58184048,0.00014,2]
[368509001,1751193040318,-260.22489998,0.00014,2]
[368509004,1751193040334,-234941.805,0.00014,2]
[368509117,1751193041549,-0.03263558,0.00014,2]
[368509123,1751193041593,-103948.05659615,0.00014,2]
[368509125,1751193041604,-64614.70327524,0.00014,2]
[368509127,1751193041615,-348840.53625086,0.00014,2]
[368509129,1751193041626,-596062.01364746,0.00014,2]
[368509152,1751193041830,-156.6340118,0.00014,2]
[368509335,1751193043523,-0.01904274,0.00014,2]
[368509338,1751193043539,-602.01916987,0.00014,2]
[368509340,1751193043551,-683.22339021,0.00014,2]
[368509346,1751193043590,-170.0,0.00014,2]
[368509526,1751193045315,-168.0,0.00014,2]
[368509806,1751193048321,-182.0,0.00014,2]
[368510119,1751193051708,-219.6,0.00013699,2]
[368510272,1751193053812,-137.1,0.00013699,2]
[368510273,1751193053834,-21.79509499,0.00014,2]
[368510274,1751193055336,-267.66514458,0.00014,2]
[368510276,1751193058124,-204.90295745,0.00014,2]
[368510277,1751193059868,-161.76,0.00014,2]
[368510278,1751193061399,-252.84656824,0.00014,2]
[368510279,1751193062766,592.36144663,0.0002201,29]
[368510280,1751193064849,-159.0,0.0001386,2]
[368510281,1751193065180,1076.0,0.0002739,120]
[368510282,1751193068441,-290.26082498,0.0001386,2]
[368510283,1751193075692,-297.89260678,0.0001386,2]
[368510284,1751193077861,-151.0,0.0001386,2]
[368510285,1751193080012,-170.0,0.0001386,2]
[368510286,1751193085493,-168.0,0.0001379,2]
[368510287,1751193088193,-168.0,0.0001379,2]
[368510288,1751193092198,-182.36855939,0.0001372,2]
[368510289,1751193098549,-159.18,0.000135,4]
[368510290,1751193102888,-140.82,0.000135,4]
[368510291,1751193102912,-354.20408146,0.000136,4]
[368510292,1751193106963,-204.0,0.000136,4]
[368510293,1751193109416,-41.79591854,0.000136,4]
[368510294,1751193109440,-138.45408146,0.000137,5]
[368510295,1751193111538,-162.16,0.000137,5]
[368510296,1751193114897,-311.64162757,0.000137,5]
[368510297,1751193118935,-158.50315,0.000137,5]
[368510298,1751193121876,-220.24644134,0.000137,5]
[368510299,1751193124150,-8.99469963,0.000137,5]
[368510300,1751193124175,-250.0,0.0001371,2]
[368510301,1751193124199,-23.87745313,0.0001372,2]
[368510302,1751193126284,-241.19398748,0.0001372,2]
[368510303,1751193126307,-448.85013159,0.0001379,2]
[368510304,1751193128547,-273.46229958,0.0001379,2]
[368510305,1751193133303,-134.77003983,0.0001379,2]
[368510306,1751193133328,-193.5938508,0.000138,5]
[368510307,1751193136854,-300.0,0.000138,5]
[368510308,1751193139034,-199.12643792,0.000138,5]
[368510309,1751193141838,-287.25171819,0.000138,5]
[368510310,1751193144060,-320.02799309,0.000138,5]
[368510311,1751193144086,-270.43200691,0.000139,2]
[368510312,1751193145812,-544.01561562,0.000139,2]
[368510313,1751193149843,-922.62441045,0.000139,2]
[368510314,1751193151586,-235.87695789,0.000139,2]
[368510315,1751193153409,-264.08569494,0.000139,2]
[368510316,1751193154954,3279.13735004,0.00022,30]
[368510317,1751193156878,-247.34286685,0.000139,2]
[368510318,1751193159779,-327.75879557,0.000139,2]
[368510319,1751193161406,-161.75760288,0.000138,2]
[368510320,1751193161436,-96.89640111,0.000139,2]
[368510321,1751193164964,-255.98438438,0.000139,2]
[368510322,1751193167468,-281.87189404,0.000139,2]
[368510323,1751193169136,-406.0,0.000139,2]
[368510324,1751193188018,329.0,0.0002739,120]
[368510325,1751193188921,3888.87918848,0.00022,30]
[368510326,1751193209682,1959.23154816,0.00022,30]
[368510327,1751193399660,200.0,0.00014298,7]
[368510336,1751193483236,-175.1,0.00011438,2]
[368510337,1751193483262,-51.59805244,0.00012581,2]
[368510338,1751193500598,-252.84656824,0.00012357,2]
[368510339,1751193515620,-47.15343176,0.00012357,2]
[368510340,1751193515643,-134.84656824,0.00012581,2]
[368510341,1751193531165,-63.55537932,0.00012581,2]
[368510342,1751193531188,-104.44462068,0.00012581,2]
[368510343,1751193546656,-161.76,0.00012581,2]
[368510344,1751193553907,639.7056638,0.00027397,120]
[368510345,1751193560502,-33.79537932,0.00012581,2]
[368510347,1751193589400,-300.0,0.00013032,2]
[368510348,1751193690171,-650.0,0.00012646,2]
[368510349,1751193762900,-280.0,0.00012634,2]
[368510351,1751193854772,-156.6340118,0.00012559,2]
[368510352,1751193860614,-200.0,0.00012537,2]
[368510353,1751193860636,-67.66514458,0.00012559,2]
[368510354,1751193875662,-170.0,0.00012559,2]
[368510355,1751193965041,-257.3,0.00012559,2]
[368510356,1751194011336,-250.0,0.00012578,2]
[368510357,1751194011358,-300.0,0.00012578,2]
[368510358,1751194011379,-250.0,0.00012596,2]
[368510359,1751194011400,-300.0,0.00012607,2]
[368510360,1751194011420,-88.49863839,0.00012623,2]
[368510362,1751194099727,-922.62441045,0.00012463,2]
[368510363,1751194116104,-150.938522,0.00012452,2]
[368510364,1751194116126,-176.82027357,0.00012463,2]
[368510365,1751194130681,-200.0,0.00012447,2]
[368510366,1751194130704,-47.34286685,0.00012463,2]
[368510367,1751194146165,-264.08569494,0.00012426,2]
[368510368,1751194160617,-35.91430506,0.00012426,2]
[368510369,1751194160639,-508.10131056,0.00012427,2]
[368510370,1751194175580,-406.0,0.00012427,2]
[368510371,1751194191510,-270.43200691,0.00012427,2]
[368510372,1751194206431,-352.88078549,0.00012426,2]
[368510373,1751194224435,-235.87695789,0.00012426,2]
[368510376,1751194231372,-611.24225662,0.00012426,2]
[368510378,1751194231381,-364.0,0.00012426,2]
[368510380,1751194231391,-1536.56277265,0.00012427,2]
[368510382,1751194231403,-7624.85390988,0.00012427,2]
[368510383,1751194231412,-7780.56,0.00012427,2]
[368510384,1751194231422,-650.62,0.00012427,2]
[368510385,1751194231432,-300.0,0.00012445,2]
[368510386,1751194231442,-2337.91244913,0.00012463,2]
[368510387,1751194231451,-182.36855939,0.00012515,2]
[368510388,1751194231461,-300.0,0.00012518,2]
[368510389,1751194231471,-250.0,0.00012518,2]
[368510390,1751194231480,-169.3,0.0001252,2]
[368510391,1751194231489,-1000.0,0.00012584,2]
[368510392,1751194231499,-12005.67,0.00012585,2]
[368510393,1751194231508,-61.50136161,0.00012623,2]
[368510394,1751194231517,-300.0,0.00012627,2]
[368510395,1751194231527,-12728.9,0.00012628,2]
[368510396,1751194231536,-5422.24,0.00012634,2]
[368510397,1751194231546,-150.04,0.00012634,2]
[368510398,1751194231555,-590.2,0.00012642,2]
[368510399,1751194231564,-1414.99,0.00012646,2]
[368510400,1751194231574,-4460.285854,0.000127,2]
[368510401,1751194231584,-166.7,0.00013023,2]
[368510402,1751194231593,-208.41,0.00013145,2]
[368510403,1751194231603,-175.1,0.00013344,2]
[368510404,1751194231612,-600.0,0.000134,4]
[368510405,1751194231622,-300.0,0.000134,4]